bitfinex-derivatives/quotes_SOLF0:USTF0_20241105
["timestamp","ask_amount","ask_price","bid_price","bid_amount"]
[1730805569912,7.61643154,162.08,162.07,3.0863]
[1730805572814,7.61643154,162.08,162.03,7.61643154]
[1730805573114,7.61643154,162.06,162.04,3.0869]
[1730805573512,10.70323154,162.06,162.02,13.42363154]
[1730805573709,10.70323154,162.06,162.02,10.70363154]
[1730805573710,7.61643154,162.06,162.02,10.70363154]
[1730805573908,7.61643154,162.05,162.02,3.0872]
[1730805574115,7.61643154,162.05,162.02,3.0873]
[1730805574314,7.61643154,162.05,162.01,3.53103]
[1730805574517,7.61643154,162.05,162.01,11.14746154]
[1730805575824,10.70333154,162.05,162.02,3.0873]
[1730805580019,3.0869,162.05,162.03,3.0872]
[1730805583931,7.61643154,162.05,162.01,2.72]
[1730805584131,3.0871,162.04,162.02,3.0873]
[1730805584831,10.70353154,162.04,162.02,3.0874]
[1730805589032,3.0871,162.04,162.02,3.0874]
[1730805594133,7.61643154,162.05,162.0,10.33643154]
[1730805594337,10.70333154,162.05,162.03,3.0872]
[1730805595533,1.3248,162.07,162.0,10.33643154]
[1730805595534,7.61643154,162.06,162.0,10.33643154]
[1730805596533,10.70303154,162.06,162.01,3.0874]
[1730805596732,10.70303154,162.06,162.0,10.33643154]
[1730805597633,10.70303154,162.06,162.03,3.087]
[1730805598134,7.61643154,162.06,162.03,3.087]
[1730805598337,3.0869,162.05,162.03,3.087]
[1730805601138,3.0869,162.05,162.0,10.33643154]
[1730805601736,3.0869,162.05,162.03,3.0871]
[1730805605435,10.70333154,162.05,162.03,3.0871]
[1730805605940,7.61643154,162.04,162.01,3.0875]
[1730805606141,1.3248,162.07,161.96,7.61643154]
[1730805606142,7.61643154,162.02,161.96,7.61643154]
[1730805606344,7.61643154,162.01,161.98,77.85599457]
[1730805606646,7.61643154,162.01,161.99,3.0879]
[1730805607245,10.70413154,162.01,161.99,3.0879]
[1730805607641,10.70413154,162.01,161.98,80.94409457]
[1730805607945,10.70413154,162.01,161.98,78.22409457]
[1730805608739,10.70423154,162.0,161.98,78.22409457]
[1730805608945,10.70423154,162.0,161.97,3.0882]
[1730805609543,7.61643154,162.0,161.98,3.0881]
[1730805609748,7.61643154,162.0,161.95,3.60025]
[1730805609949,7.61643154,162.0,161.95,11.21668154]
[1730805610245,7.61643154,162.0,161.98,3.0881]
[1730805612148,7.61643154,162.0,161.95,11.21668154]
[1730805612343,7.61643154,162.0,161.95,3.60025]
[1730805612852,3.088,161.99,161.96,3.0884]
[1730805614446,7.61643154,162.0,161.95,11.21668154]
[1730805614648,10.70433154,162.0,161.96,3.0884]
[1730805615455,2.72,162.05,161.95,3.96885]
[1730805615456,3.0883,161.98,161.95,3.96885]
[1730805616151,3.0883,161.98,161.96,3.0885]
[1730805620051,7.61643154,161.99,161.96,3.0885]
[1730805620345,10.70443154,161.99,161.96,3.0885]
[1730805623056,2.72,162.05,161.95,7.61643154]
[1730805623359,2.72,162.05,161.96,7.61643154]
[1730805623658,7.61643154,162.04,161.99,7.61643154]
[1730805623854,10.70363154,162.04,162.01,3.0874]
[1730805624050,10.70363154,162.04,161.99,7.61643154]
[1730805624457,10.70363154,162.04,162.01,3.0874]
[1730805626062,3.0872,162.03,162.01,3.0874]
[1730805627062,2.72,162.05,161.98,7.61643154]
[1730805627254,7.61643154,162.05,162.0,7.61643154]
[1730805627954,10.70323154,162.05,162.03,3.0871]
[1730805628154,7.61643154,162.05,162.03,3.0871]
[1730805629058,10.70323154,162.06,162.03,3.0871]
[1730805630762,10.70323154,162.06,162.01,7.61643154]
[1730805631159,10.70323154,162.06,162.03,3.087]
[1730805632561,7.61643154,162.05,162.03,3.087]
[1730805634067,3.0873,162.03,162.01,3.0875]
[1730805634268,10.70373154,162.03,162.01,3.0875]
[1730805634561,7.61643154,162.03,162.02,3.0874]
[1730805635555,10.70343154,162.04,162.02,3.0874]
[1730805635754,1.3248,162.07,162.06,3.0866]
[1730805635967,1.3248,162.07,162.03,7.61643154]
[1730805636668,4.4112,162.07,162.05,3.0867]
[1730805636872,12.02763154,162.07,162.05,3.0867]
[1730805638768,10.70303154,162.06,162.03,3.0871]
[1730805638971,7.61643154,162.06,162.03,3.0871]
[1730805640066,7.61643154,162.06,162.04,3.087]
[1730805641376,10.70303154,162.06,162.04,3.087]
[1730805642682,7.61643154,162.05,161.98,2.72]
[1730805642977,1.3248,162.07,161.98,2.72]
[1730805642978,7.61643154,162.02,161.98,2.72]
[1730805643172,7.61643154,162.02,161.99,3.0879]
[1730805643373,7.61643154,162.02,161.98,2.72]
[1730805644370,10.70383154,162.02,162.0,3.0877]
[1730805645477,7.61643154,162.02,161.97,7.61643154]
[1730805645682,7.61643154,162.0,161.96,0.8664]
[1730805645877,10.70433154,162.0,161.97,3.0882]
[1730805647487,3.0879,162.0,161.97,3.0882]
[1730805647980,7.61643154,162.01,161.96,0.8664]
[1730805648185,7.61643154,162.01,161.98,3.088]
[1730805649183,10.70403154,162.01,161.98,3.088]
[1730805651986,10.70403154,162.01,161.97,3.0882]
[1730805652186,10.70403154,162.01,161.96,7.61643154]
[1730805652881,10.70403154,162.01,161.98,3.088]
[1730805653990,3.088,161.99,161.95,2.72]
[1730805654493,3.088,161.99,161.96,3.0884]
[1730805657892,7.61643154,161.98,161.96,3.0884]
[1730805658197,10.70463154,161.98,161.96,3.0884]
[1730805660394,7.61643154,161.98,161.96,3.0884]
[1730805663905,3.088,161.99,161.96,3.0884]
[1730805667407,3.088,161.99,161.97,3.0882]
[1730805668707,10.70433154,162.0,161.98,3.088]
[1730805669009,7.61643154,162.0,161.95,7.61643154]
[1730805669406,7.1226,162.01,161.95,7.61643154]
[1730805669908,14.73903154,162.01,161.95,7.61643154]
[1730805670703,11.35087619,162.07,161.93,2.72]
[1730805670704,11.35087619,162.07,162.0,3.0878]
[1730805670904,7.61643154,162.03,162.0,3.0878]
[1730805672404,10.70383154,162.02,162.0,3.0878]
[1730805673309,7.61643154,162.01,161.93,2.72]
[1730805673510,7.61643154,161.99,161.97,3.0882]
[1730805674209,7.61643154,161.99,161.95,3.0886]
[1730805674411,7.61643154,161.99,161.94,7.61643154]
[1730805674813,7.61643154,161.99,161.93,2.72]
[1730805675113,7.61643154,161.99,161.97,3.0882]
[1730805676111,7.61643154,161.99,161.94,7.61643154]
[1730805676411,7.61643154,161.99,161.98,3.0881]
[1730805677409,10.70433154,162.0,161.98,3.0881]
[1730805681121,3.0879,162.0,161.98,3.0881]
[1730805683318,10.70433154,162.0,161.98,3.0881]
[1730805695036,10.70403154,162.01,161.99,3.0878]
[1730805703854,3.088,161.99,161.97,3.0882]
[1730805707159,10.70423154,162.0,161.98,3.0881]
[1730805707350,10.70423154,162.0,161.95,2.72]
[1730805707551,7.61643154,162.0,161.95,2.72]
[1730805707856,3.0881,161.99,161.96,3.0884]
[1730805708160,3.0881,161.99,161.95,2.72]
[1730805709064,7.61643154,162.0,161.95,2.72]
[1730805709252,3.0884,161.97,161.95,5.8087]
[1730805709654,7.61643154,161.98,161.95,2.72]
[1730805710360,2.6881,162.01,161.92,75.16901272]
[1730805710361,7.61643154,161.97,161.92,75.16901272]
[1730805711157,3.0886,161.96,161.93,3.0889]
[1730805711356,2.6881,162.01,161.94,7.61643154]
[1730805711553,3.0883,161.98,161.95,3.0886]
[1730805713368,2.6881,162.01,161.94,7.61643154]
[1730805713577,3.0879,162.0,161.97,3.0882]
[1730805714555,8.95353154,162.02,161.95,7.61643154]
[1730805714760,24.97582205,162.08,161.98,7.61643154]
[1730805714960,24.97582205,162.08,161.93,5.88262782]
[1730805714961,7.61643154,161.99,161.9,0.94951]
[1730805715260,15.41852248,162.08,161.94,3.0888]
[1730805715261,10.70493154,161.97,161.94,3.0888]
[1730805715560,7.61643154,161.96,161.9,0.94951]
[1730805715765,7.61643154,161.92,161.9,0.94951]
[1730805717170,10.70553154,161.93,161.9,0.94951]
[1730805717664,10.70553154,161.93,161.89,3.0897]
[1730805720262,10.70573154,161.92,161.88,3.09]
[1730805720466,1.4154,161.96,161.87,7.61643154]
[1730805720667,4.0534,161.96,161.87,7.61643154]
[1730805720971,10.70543154,161.94,161.9,3.0896]
[1730805721271,7.61643154,161.96,161.91,7.61643154]
[1730805721470,10.70513154,161.96,161.92,3.0891]
[1730805722466,7.61643154,161.96,161.92,3.0891]
[1730805722762,7.61643154,161.96,161.83,1.3032]
[1730805722763,7.61643154,161.93,161.81,2.72]
[1730805722962,7.61643154,161.93,161.73,22.53241497]
[1730805722963,7.61643154,161.86,161.75,3.08202792]
[1730805723160,7.61643154,161.86,161.81,7.61643154]
[1730805723366,3.0906,161.85,161.81,7.61643154]
[1730805724366,3.0906,161.85,161.82,3.0912]
[1730805726066,10.70693154,161.86,161.82,3.0912]
[1730805728571,3.0902,161.88,161.84,3.0908]
[1730805728775,7.61643154,161.88,161.84,3.0908]
[1730805729567,3.0901,161.88,161.85,3.0906]
[1730805730261,7.61643154,161.9,161.84,7.61643154]
[1730805730467,2.6381,161.92,161.86,7.61643154]
[1730805730666,2.6381,161.92,161.87,7.61643154]
[1730805731072,10.70563154,161.93,161.89,7.61643154]
[1730805731273,10.33643154,161.94,161.9,7.61643154]
[1730805731469,2.7694,162.0,161.9,7.61643154]
[1730805731470,7.61643154,161.95,161.9,7.61643154]
[1730805731769,3.0887,161.96,161.91,7.61643154]
[1730805731967,10.70483154,161.97,161.94,3.0889]
[1730805732767,7.61643154,161.99,161.94,7.61643154]
[1730805733073,11.75873154,162.0,161.95,7.61643154]
[1730805733580,11.75873154,162.0,161.95,10.70493154]
[1730805733781,14.84663154,162.0,161.95,10.70493154]
[1730805734080,11.75873154,162.0,161.95,7.61643154]
[1730805734276,7.61643154,162.02,161.97,10.70473154]
[1730805734578,7.61643154,162.02,161.96,2.72]
[1730805734878,7.61643154,162.02,161.98,3.0881]
[1730805734879,10.70393154,162.02,161.98,3.0881]
[1730805735776,2.586,162.05,162.0,3.0878]
[1730805735977,10.20243154,162.05,162.0,7.61643154]
[1730805736375,10.20243154,162.05,161.96,2.72]
[1730805736376,10.20243154,162.05,161.99,7.61643154]
[1730805736580,3.087,162.04,162.0,3.0876]
[1730805737776,1.3339,162.09,162.02,7.61643154]
[1730805737977,7.61643154,162.07,162.02,7.61643154]
[1730805739276,3.0868,162.05,162.02,10.70383154]
[1730805739981,7.61643154,162.07,162.02,7.61643154]
[1730805740279,10.70303154,162.07,162.02,7.61643154]
[1730805740482,7.61643154,162.08,162.03,7.61643154]
[1730805741378,3.0863,162.08,162.04,3.0868]
[1730805741578,10.70273154,162.08,162.04,3.0868]
[1730805742982,4.4199,162.09,162.05,7.61643154]
[1730805743381,4.4199,162.09,162.06,7.61643154]
[1730805743982,4.4199,162.09,162.05,10.70313154]
[1730805744286,8.95033154,162.09,162.04,10.33643154]
[1730805744584,10.70333154,162.05,162.02,5.8073]
[1730805744773,7.61643154,162.05,162.02,2.72]
[1730805744974,10.70333154,162.05,162.01,3.0874]
[1730805745179,7.61643154,162.05,162.01,2.72]
[1730805745374,7.61643154,162.02,161.99,2.72]
[1730805745687,3.0876,162.01,161.98,5.8081]
[1730805745877,7.61643154,162.02,161.98,2.72]
[1730805746679,10.70393154,162.02,161.99,3.0878]
[1730805747285,3.0875,162.02,161.99,3.0878]
[1730805749186,3.0875,162.02,162.0,3.0878]
[1730805750288,3.0877,162.01,161.98,5.8081]
[1730805753090,3.0875,162.02,161.99,3.0878]
[1730805754786,5.8021,162.04,161.98,2.72]
[1730805755187,4.3945,162.04,161.98,2.72]
[1730805755386,1.3073,162.04,161.98,2.72]
[1730805755684,11.86002723,162.07,161.98,2.72]
[1730805755685,3.0869,162.05,161.98,2.72]
[1730805756086,3.0869,162.05,162.02,3.0873]
[1730805756287,3.0869,162.05,161.98,2.72]
[1730805756288,3.0872,162.04,161.98,2.72]
[1730805756482,11.86002723,162.07,161.98,2.72]
[1730805756886,3.0871,162.04,162.01,3.0876]
[1730805757288,11.86002723,162.07,162.01,3.0876]
[1730805757485,11.86002723,162.05,162.01,3.0876]
[1730805758283,3.0872,162.03,162.01,3.0876]
[1730805758483,3.0872,162.03,162.0,3.0877]
[1730805759195,3.0876,162.01,161.99,3.0879]
[1730805759895,3.0875,162.02,162.0,3.0877]
[1730805760790,1.355,162.04,162.0,3.0877]
[1730805760987,3.0873,162.03,162.0,3.0877]
[1730805762293,1.355,162.04,161.97,2.86]
[1730805762891,3.0874,162.02,161.99,3.0879]
[1730805763884,3.0874,162.02,161.97,2.86]
[1730805764092,3.0872,162.03,161.97,2.86]
[1730805764695,3.0872,162.03,162.0,3.0876]
[1730805767498,3.0872,162.03,161.97,2.86]
[1730805769201,3.0872,162.03,162.0,3.0876]
[1730805769392,10.67724013,162.03,162.0,3.0876]
[1730805779100,7.59004013,162.03,162.0,3.0876]
[1730805779312,3.0874,162.02,162.0,3.0876]
[1730805796927,3.0874,162.02,161.98,7.59004013]
[1730805796928,3.0881,161.99,161.94,2.8]
[1730805797136,10.67814013,161.99,161.94,2.8]
[1730805797937,10.67814013,161.99,161.97,3.0882]
[1730805802438,3.0881,161.99,161.97,3.0882]
[1730805806039,1.3638,162.02,161.98,7.59004013]
[1730805806233,8.94504013,162.04,161.98,7.59004013]
[1730805808245,3.0874,162.02,162.0,3.0876]
[1730805810948,3.0877,162.01,161.98,3.088]
[1730805811145,7.59004013,162.02,161.98,3.088]
[1730805811646,3.0877,162.01,161.97,7.59004013]
[1730805811948,3.0877,162.01,161.96,7.59004013]
[1730805812841,3.0877,162.01,161.99,3.0879]
[1730805814150,7.59004013,162.0,161.8,9.2743]
[1730805814340,7.59004013,161.98,161.93,2.76]
[1730805814942,3.0887,161.96,161.93,5.849]
[1730805815250,7.59004013,161.96,161.93,3.089]
[1730805815542,3.0887,161.95,161.93,3.089]
[1730805816150,10.67864013,161.96,161.93,3.089]
[1730805816837,3.0886,161.96,161.93,3.089]
[1730805818549,2.6747,162.0,161.93,3.089]
[1730805818550,7.59004013,161.99,161.95,3.0886]
[1730805819249,3.0884,161.97,161.95,3.0886]
[1730805819746,3.0884,161.97,161.94,3.0888]
[1730805824146,3.0882,161.98,161.96,3.0884]
[1730805824350,10.35004013,162.01,161.95,7.59004013]
[1730805824553,7.59004013,162.01,161.95,10.35004013]
[1730805824748,7.59004013,162.01,161.97,7.59004013]
[1730805824945,7.59004013,162.03,161.98,7.59004013]
[1730805825443,3.0874,162.02,162.0,3.0876]
[1730805840067,10.67744013,162.02,162.0,3.0876]
[1730805841464,3.0881,161.98,161.96,3.0884]
[1730805841761,7.59004013,162.01,161.95,10.35004013]
[1730805841966,4.0444,162.04,161.96,7.59004013]
[1730805842169,3.0879,162.0,161.97,3.0882]
[1730805842760,7.59004013,162.02,161.97,3.0882]
[1730805843057,3.088,161.99,161.97,3.0882]
[1730805844863,3.088,161.99,161.98,7.59004013]
[1730805845067,3.088,161.99,161.97,3.0882]
[1730805847869,7.59004013,162.01,161.96,7.59004013]
[1730805848173,3.0878,162.0,161.98,3.088]
[1730805850372,7.59004013,162.01,161.96,7.59004013]
[1730805850578,3.0879,162.0,161.97,3.0882]
[1730805853670,3.0884,161.97,161.95,3.0886]
[1730805853870,10.67844013,161.97,161.95,3.0886]
[1730805854768,7.59004013,161.97,161.93,7.59004013]
[1730805854976,3.0886,161.96,161.94,3.0888]
[1730805855172,7.59004013,161.96,161.93,2.76]
[1730805855578,3.0888,161.95,161.93,5.849]
[1730805856287,10.67864013,161.96,161.93,5.849]
[1730805856686,3.0889,161.94,161.92,78.25251372]
[1730805857186,7.59004013,161.95,161.92,75.16331372]
[1730805857582,3.089,161.94,161.91,3.0895]
[1730805862781,7.59004013,161.95,161.9,5.8496]
[1730805862984,7.59004013,161.93,161.9,5.8496]
[1730805863884,10.67924013,161.93,161.9,5.8496]
[1730805864584,7.59004013,161.93,161.9,3.0896]
[1730805864786,3.0894,161.92,161.89,10.67984013]
[1730805865081,7.59004013,161.92,161.87,10.35004013]
[1730805865486,3.0896,161.91,161.88,3.0899]
[1730805865794,7.59004013,161.92,161.88,3.0899]
[1730805866587,3.0895,161.91,161.88,3.0899]
[1730805867694,7.59004013,161.92,161.87,3.0902]
[1730805867994,7.59004013,161.9,161.85,2.76]
[1730805868392,3.0903,161.87,161.82,75.20880018]
[1730805868595,7.59004013,161.88,161.82,85.55884031]
[1730805869096,7.59004013,161.89,161.84,3.0908]
[1730805869797,3.0903,161.87,161.84,3.0908]
[1730805872390,3.0905,161.86,161.83,3.0909]
[1730805872593,7.59004013,161.87,161.83,3.0909]
[1730805873010,3.0907,161.85,161.76,2.6653]
[1730805873196,7.59004013,161.86,161.76,2.6653]
[1730805873197,7.59004013,161.86,161.81,3.0913]
[1730805873697,3.091,161.84,161.81,3.0913]
[1730805874193,3.091,161.84,161.81,3.0912]
[1730805875901,3.0911,161.83,161.8,3.0915]
[1730805876095,3.0911,161.83,161.8,7.59004013]
[1730805877001,3.0911,161.83,161.81,3.0913]
[1730805877202,3.0909,161.84,161.81,3.0913]
[1730805882699,7.59004013,161.84,161.8,7.59004013]
[1730805883108,3.0911,161.83,161.81,3.0914]
[1730805883703,7.59004013,161.84,161.81,3.0914]
[1730805883900,10.68094013,161.84,161.81,3.0914]
[1730805884807,10.68094013,161.84,161.82,3.0912]
[1730805885206,3.0906,161.86,161.81,7.59004013]
[1730805885505,7.59004013,161.89,161.85,3.0906]
[1730805885703,3.0901,161.88,161.85,3.0906]
[1730805885904,7.59004013,161.9,161.85,7.59004013]
[1730805886106,4.0797,161.91,161.85,7.59004013]
[1730805886301,3.0899,161.89,161.85,7.59004013]
[1730805886709,7.59004013,161.9,161.85,7.59004013]
[1730805886911,2.7085,161.91,161.88,7.59004013]
[1730805887315,2.7085,161.91,161.88,3.09]
[1730805887514,5.7981,161.91,161.88,3.09]
[1730805889309,3.09,161.89,161.86,3.0904]
[1730805889511,10.68004013,161.89,161.86,3.0904]
[1730805893213,2.7085,161.91,161.84,3.0907]
[1730805893214,3.0905,161.86,161.84,3.0907]
[1730805893417,7.59004013,161.88,161.83,10.35004013]
[1730805894316,3.0904,161.87,161.83,10.35004013]
[1730805895022,3.0904,161.87,161.84,3.0907]
[1730805895923,3.09,161.89,161.86,7.59004013]
[1730805896920,3.09,161.89,161.86,10.68044013]
[1730805901126,10.68004013,161.89,161.86,3.0904]
[1730805905228,10.67974013,161.9,161.88,3.09]
[1730805905833,10.67974013,161.9,161.87,3.0902]
[1730805906128,3.0897,161.9,161.86,7.59004013]
[1730805906337,1.4054,161.96,161.89,7.59004013]
[1730805906632,1.4054,161.96,161.83,3.09020685]
[1730805906633,1.4054,161.96,161.91,7.59004013]
[1730805906825,3.0888,161.95,161.92,3.0892]
[1730805908133,7.59004013,161.93,161.88,2.74]
[1730805908334,7.59004013,161.91,161.86,2.74]
[1730805908534,7.59004013,161.9,161.86,2.74]
[1730805908738,10.67984013,161.9,161.87,3.0901]
[1730805909431,3.0901,161.88,161.86,2.74]
[1730805910534,10.68014013,161.88,161.86,2.74]
[1730805911129,10.68014013,161.88,161.86,5.8304]
[1730805911729,3.0901,161.88,161.86,5.8304]
[1730805912534,10.68004013,161.89,161.86,5.8304]
[1730805912732,7.59004013,161.89,161.87,3.0901]
[1730805914336,10.67994013,161.89,161.87,3.0901]
[1730805914738,10.67994013,161.89,161.86,2.74]
[1730805914941,10.67994013,161.89,161.86,5.8303]
[1730805915129,7.59004013,161.89,161.86,2.74]
[1730805915330,4.1454,161.96,161.9,3.0896]
[1730805915534,7.59004013,161.95,161.9,7.59004013]
[1730805915733,3.0891,161.93,161.86,2.74]
[1730805916043,7.59004013,161.93,161.89,3.0897]
[1730805916340,3.0894,161.92,161.89,3.0897]
[1730805916528,7.59004013,161.91,161.86,10.33004013]
[1730805916734,7.59004013,161.91,161.88,3.0899]
[1730805917137,10.67964013,161.91,161.89,3.0899]
[1730805921044,3.0897,161.9,161.88,3.09]
[1730805921442,3.0897,161.9,161.85,2.74]
[1730805921443,7.59004013,161.9,161.85,2.74]
[1730805921844,3.09,161.89,161.87,3.0902]
[1730805930451,2.6242,161.94,161.85,2.74]
[1730805930752,10.67974013,161.9,161.88,3.0899]
[1730805931347,13.30324013,161.94,161.91,3.0893]
[1730805931566,4.3806,161.94,161.9,7.59004013]
[1730805931750,3.089,161.94,161.9,7.59004013]
[1730805932451,3.089,161.94,161.91,3.0894]
[1730805934354,10.67904013,161.94,161.91,3.0895]
[1730805934953,10.67904013,161.94,161.89,10.33004013]
[1730805935261,7.59004013,161.95,161.9,7.59004013]
[1730805935853,7.59004013,161.95,161.93,3.089]
[1730805936950,7.59004013,161.95,161.89,2.74]
[1730805936951,10.67864013,161.96,161.94,3.0889]
[1730805937351,2.6353,161.99,161.92,7.59004013]
[1730805937553,3.0883,161.98,161.95,3.0886]
[1730805937751,10.67834013,161.98,161.95,3.0886]
[1730805938556,3.0883,161.97,161.95,3.0886]
[1730805939254,10.67824013,161.98,161.95,3.0886]
[1730805939949,7.59004013,161.98,161.95,3.0886]
[1730805940554,2.6353,161.99,161.93,2.74]
[1730805940749,3.0889,161.94,161.93,2.74]
[1730805940950,3.0889,161.94,161.91,3.0894]
[1730805941146,7.59004013,161.95,161.91,3.0894]
[1730805941350,10.67914013,161.93,161.9,5.8296]
[1730805942351,7.59004013,161.93,161.91,3.0894]
[1730805944859,10.67914013,161.93,161.91,3.0894]
[1730805945059,7.59004013,161.93,161.9,2.74]
[1730805945355,7.59004013,161.93,161.9,5.8297]
[1730805946250,3.0894,161.92,161.9,5.8297]
[1730805948760,7.59004013,161.93,161.9,5.8297]
[1730805948961,3.0892,161.93,161.91,3.0894]
[1730805953364,3.0901,161.88,161.86,5.8304]
[1730805953660,7.59004013,161.91,161.86,2.74]
[1730805953865,3.0898,161.9,161.87,3.0901]
[1730805954068,3.0898,161.9,161.86,2.74]
[1730805954564,3.0898,161.9,161.88,3.09]
[1730805955264,7.59004013,161.91,161.85,7.59004013]
[1730805955456,10.68004013,161.89,161.84,7.59004013]
[1730805955657,7.59004013,161.88,161.84,2.74]
[1730805956267,3.0904,161.87,161.85,3.0905]
[1730805958569,3.09,161.89,161.86,3.0902]
[1730805958763,7.59004013,161.9,161.85,7.59004013]
[1730805958959,8.97654013,161.91,161.86,7.59004013]
[1730805959566,3.0898,161.9,161.87,3.0901]
[1730805960561,3.0898,161.9,161.86,7.59004013]
[1730805960758,3.0898,161.9,161.88,3.09]
[1730805963773,3.0898,161.9,161.86,7.59004013]
[1730805963968,3.0898,161.9,161.87,3.0902]
[1730805965974,3.0897,161.9,161.87,3.0902]
[1730805967369,10.67974013,161.9,161.87,3.0902]
[1730805969669,7.59004013,161.9,161.83,77.94790182]
[1730805969882,3.0904,161.87,161.83,75.20790182]
[1730805970175,3.0904,161.87,161.84,2.74]
[1730805970376,3.0904,161.87,161.85,3.0905]
[1730805971377,3.0901,161.88,161.85,3.0905]
[1730805971977,7.59004013,161.89,161.85,3.0905]
[1730805972179,3.0903,161.87,161.85,3.0905]
[1730805975778,3.0906,161.86,161.83,75.20790182]
[1730805975982,7.59004013,161.86,161.83,75.20790182]
[1730805977378,3.0908,161.85,161.83,78.29890182]
[1730805979478,7.59004013,161.86,161.83,75.20790182]
[1730805979689,3.0909,161.84,161.82,7.59004013]
[1730805979884,7.59004013,161.86,161.82,7.59004013]
[1730805981084,1.2783,161.88,161.81,2.74]
[1730805981085,1.2783,161.88,161.84,7.59004013]
[1730805981278,2.74,161.9,161.84,7.59004013]
[1730805981587,3.09,161.89,161.86,10.68034013]
[1730805981775,7.59004013,161.9,161.86,10.68034013]
[1730805982499,4.1461,161.93,161.86,7.59004013]
[1730805982682,7.59004013,161.92,161.88,3.0899]
[1730805983084,3.0896,161.91,161.88,3.09]
[1730805983280,3.0896,161.91,161.87,7.59004013]
[1730805983478,7.59004013,161.92,161.87,7.59004013]
[1730805983689,4.4953,161.93,161.9,3.0895]
[1730805983884,1.4061,161.93,161.89,7.59004013]
[1730805984389,3.0893,161.92,161.89,10.67984013]
[1730805984884,3.0895,161.91,161.89,10.67984013]
[1730805985884,3.0893,161.92,161.89,10.67984013]
[1730805991793,37.5998152,161.96,161.9,7.59004013]
[1730805992089,45.18985533,161.96,161.9,7.59004013]
[1730805992489,3.089,161.94,161.91,3.0894]
[1730805994292,48.27845533,161.96,161.94,3.0889]
[1730805994488,37.5998152,161.96,161.94,3.0889]
[1730805994685,37.5998152,161.96,161.93,7.59004013]
[1730805994988,37.5998152,161.96,161.94,3.0887]
[1730805995691,3.0887,161.95,161.92,3.0892]
[1730805998292,45.18985533,161.96,161.91,7.59004013]
[1730805998490,5.4795,162.0,161.93,7.59004013]
[1730805998491,3.0883,161.98,161.93,7.59004013]
[1730805998691,10.67834013,161.98,161.94,7.59004013]
[1730805998894,10.67834013,161.98,161.95,3.0887]
[1730805999092,3.0883,161.98,161.95,3.0887]
[1730806000492,3.0884,161.97,161.95,3.0887]
[1730806000693,3.0884,161.97,161.93,10.35004013]
[1730806001500,3.0884,161.97,161.95,3.0887]
[1730806005605,2.7395,162.0,161.93,10.35004013]
[1730806005908,7.59004013,162.02,161.97,7.59004013]
[1730806006311,10.67754013,162.02,161.99,3.0878]
[1730806007410,3.0876,162.01,161.99,3.0878]
[1730806008110,7.59004013,162.01,161.93,2.76]
[1730806008417,10.67804013,161.99,161.96,3.0884]
[1730806009111,7.59004013,161.99,161.94,7.59004013]
[1730806009314,7.59004013,161.99,161.95,3.0885]
[1730806009315,3.0882,161.98,161.95,3.0885]
[1730806012618,7.59004013,161.99,161.94,7.59004013]
[1730806013217,3.0882,161.98,161.95,3.0886]
[1730806013916,3.0882,161.98,161.94,7.59004013]
[1730806013917,3.0882,161.98,161.96,3.0885]
[1730806014118,3.0876,162.01,161.97,7.59004013]
[1730806014513,1.3255,162.02,161.98,3.0881]
[1730806014711,3.0876,162.01,161.98,3.0881]
[1730806015618,3.0876,162.01,161.99,3.0879]
[1730806016514,4.413,162.02,161.99,3.0879]
[1730806017422,1.3255,162.02,161.99,3.0879]
[1730806017816,4.413,162.02,161.99,3.0879]
[1730806018615,3.0876,162.01,161.99,3.0879]
[1730806020718,3.0876,162.01,161.98,3.088]
[1730806021125,3.088,161.99,161.95,7.59004013]
[1730806021523,3.088,161.99,161.96,3.0884]
[1730806021821,3.088,161.99,161.95,7.59004013]
[1730806022625,3.088,161.99,161.96,3.0885]
[1730806023625,3.088,161.99,161.95,7.59004013]
[1730806023825,3.088,161.99,161.96,3.0885]